bitfinex/quotes_ETHUSD_20260121
["timestamp","ask_amount","ask_price","bid_price","bid_amount"]
[1768975981198,4.42461949,2993.3,2992.9,0.48170629]
[1768975981429,4.42461949,2993.3,2992.7,5.04908509]
[1768975982326,4.42461949,2993.3,2992.7,5.60408509]
[1768975982640,4.42461949,2993.3,2993.1,0.001]
[1768975982931,4.95960549,2993.2,2992.7,1.106]
[1768975983131,4.42461949,2993.2,2992.7,1.106]
[1768975984415,4.42461949,2993.2,2992.7,5.60408509]
[1768975985437,4.42461949,2993.2,2992.7,6.15908509]
[1768975986046,4.42461949,2993.2,2992.8,4.49808509]
[1768975987247,0.552,2993.6,2992.8,4.49808509]
[1768975987569,4.97661949,2993.6,2992.8,4.49808509]
[1768975987843,4.97661949,2993.6,2992.8,5.05308509]
[1768975988434,0.92764054,2994.0,2992.9,4.49808509]
[1768975988742,4.97861949,2994.0,2992.9,4.49808509]
[1768975989110,4.97861949,2994.0,2993.0,0.03341129]
[1768975989439,4.97861949,2994.0,2993.1,4.49808509]
[1768975989953,4.97861949,2994.0,2993.3,4.49808509]
[1768975990443,4.42661949,2994.0,2993.3,4.49808509]
[1768975990639,0.002,2994.0,2993.3,5.06183451]
[1768975991013,4.42661949,2994.0,2993.3,5.06183451]
[1768975992828,4.42661949,2994.0,2993.3,5.61683451]
[1768975994450,0.002,2993.8,2993.3,5.61683451]
[1768975994754,0.002,2993.8,2993.4,5.05976854]
[1768975995449,0.002,2993.8,2993.4,5.61476854]
[1768975996453,0.002,2993.8,2993.4,5.05308509]
[1768975997753,0.002,2993.8,2993.4,5.60808509]
[1768976000452,0.002,2993.8,2993.4,6.15417906]
[1768976003169,0.002,2993.8,2993.4,6.70917906]
[1768976005727,0.002,2993.8,2993.4,7.26417906]
[1768976006169,0.002,2993.6,2993.4,7.26417906]
[1768976007155,0.002,2993.6,2993.4,3.91863945]
[1768976007984,0.002,2993.6,2993.4,0.57309854]
[1768976008164,0.002,2993.6,2993.4,1.12809854]
[1768976008359,4.44442704,2993.6,2993.4,1.12809854]
[1768976008679,4.88906974,2993.6,2993.4,1.12809854]
[1768976008886,4.44442704,2993.6,2993.1,0.5548875]
[1768976009382,4.44442704,2993.6,2993.1,5.04406656]
[1768976010988,4.44442704,2993.6,2993.1,5.59906656]
[1768976011282,4.44442704,2993.6,2993.1,1.1098875]
[1768976011485,4.89240999,2993.6,2993.1,1.1098875]
[1768976011867,4.44442704,2993.6,2993.1,1.1098875]
[1768976013402,4.44442704,2993.6,2993.1,1.6648875]
[1768976013563,4.44442704,2993.6,2993.1,6.15406656]
[1768976014096,4.44442704,2993.6,2993.2,4.48917906]
[1768976015354,0.002,2993.6,2993.2,4.48917906]
[1768976016108,0.002,2993.6,2993.2,5.04417906]
[1768976017868,0.002,2993.6,2993.3,4.48917906]
[1768976018062,0.002,2993.6,2993.3,4.45910727]
[1768976018458,0.002,2993.6,2993.3,5.01410727]
[1768976021597,0.002,2993.8,2993.4,4.48917906]
[1768976022098,0.002,2993.8,2993.5,4.52258477]
[1768976023371,0.002,2994.0,2993.6,4.48917906]
[1768976023974,0.002,2994.0,2993.6,5.04417906]
[1768976024172,4.44442704,2994.0,2993.6,5.04417906]
[1768976025996,4.44442704,2994.0,2993.6,0.555]
[1768976026205,4.44442704,2994.0,2993.6,1.11]
[1768976027796,4.44442704,2994.0,2993.6,1e-08]
[1768976028095,5.40942743,2993.9,2993.6,1e-08]
[1768976029406,0.002,2993.8,2993.6,1e-08]
[1768976030976,0.002,2993.8,2993.6,0.55500001]
[1768976031681,4.91158473,2993.8,2993.6,0.55500001]
[1768976031884,4.91158473,2993.8,2993.6,0.3674407]
[1768976032068,4.91158473,2993.8,2993.6,1e-08]
[1768976033297,4.91158473,2993.8,2993.6,0.55500001]
[1768976033501,4.91158473,2993.8,2993.4,5.3735219]
[1768976034106,4.91158473,2993.8,2993.4,4.82254044]
[1768976034307,0.002,2993.8,2993.4,5.37354044]
[1768976036013,0.002,2993.8,2993.4,5.92854044]
[1768976036179,0.002,2993.8,2993.5,4.82254044]
[1768976038508,0.002,2993.8,2993.5,5.37754044]
[1768976040721,0.002,2993.6,2993.5,5.37754044]
[1768976041024,0.002,2993.6,2993.5,5.93254044]
[1768976043338,0.002,2993.6,2993.5,6.48754044]
[1768976045809,0.002,2993.6,2993.5,7.04254044]
[1768976046905,0.002,2993.6,2993.2,0.555]
[1768976046906,4.90958473,2993.5,2993.2,0.555]
[1768976047261,4.90958473,2993.5,2993.2,1.106]
[1768976048339,4.90958473,2993.5,2993.2,1.661]
[1768976048738,0.002,2993.6,2993.3,4.82254044]
[1768976050939,0.002,2993.6,2993.3,0.555]
[1768976051145,4.91158473,2993.6,2993.3,0.555]
[1768976052846,0.002,2993.4,2993.3,0.555]
[1768976053350,0.002,2993.4,2993.3,1.11]
[1768976055651,0.002,2993.4,2993.3,1.665]
[1768976058155,0.002,2993.4,2993.3,2.22]
[1768976060425,0.002,2993.4,2993.3,2.775]
[1768976062958,0.002,2993.4,2993.3,3.33]
[1768976064571,4.92625991,2993.4,2993.3,0.55100001]
[1768976064737,4.92625991,2993.4,2993.3,0.551]
[1768976065061,4.92625991,2993.4,2993.3,3e-08]
[1768976065268,4.92625991,2993.4,2993.3,1.106]
[1768976065470,0.002,2993.4,2993.3,1.106]
[1768976067671,0.002,2993.4,2993.3,1.661]
[1768976067968,4.92625991,2993.4,2993.3,1.11]
[1768976068466,4.92625991,2993.4,2993.1,1.6648875]
[1768976068670,4.92625991,2993.4,2993.2,0.551]
[1768976068875,4.92625991,2993.4,2993.2,4e-08]
[1768976070077,4.92625991,2993.4,2993.2,0.55500004]
[1768976070567,4.92625991,2993.4,2993.2,0.46203666]
[1768976070778,4.92625991,2993.4,2993.2,3e-08]
[1768976072189,4.92425991,2993.3,2992.6,5.31136761]
[1768976074803,4.92425991,2993.3,2992.6,5.86636761]
[1768976076186,4.92425991,2993.3,2992.8,0.001]
[1768976076365,4.92425991,2993.3,2992.6,5.86636761]
[1768976077413,4.92425991,2993.3,2992.7,4.76036761]
[1768976078803,0.002,2993.4,2992.7,4.79378225]
[1768976079605,4.92625991,2993.4,2992.7,4.79378225]
[1768976079906,4.92625991,2993.4,2992.7,5.34878225]
[1768976082618,4.92625991,2993.4,2992.7,5.90378225]
[1768976082778,4.92625991,2993.4,2992.9,4.76036761]
[1768976085311,4.92625991,2993.4,2992.9,5.31536761]
[1768976085515,4.92625991,2993.4,2992.9,0.555]
[1768976085811,4.89725761,2993.3,2992.9,1.106]
[1768976085975,4.89725761,2993.3,2992.9,0.15257073]
[1768976087709,4.89725761,2993.3,2992.9,0.70757073]
[1768976087912,4.74738146,2993.1,2992.8,0.001]
[1768976090614,4.74738146,2993.1,2992.8,0.556]
[1768976091318,3.89429153,2993.8,2992.8,0.556]
[1768976091319,0.002,2993.8,2993.2,4.92454855]
[1768976091477,0.002,2993.8,2993.4,4.92454855]
[1768976091912,4.74538146,2993.7,2993.2,0.551]
[1768976092114,4.74538146,2993.7,2993.0,4.92454855]
[1768976092336,4.74538146,2993.7,2993.1,5.42034464]
[1768976093219,4.74538146,2993.7,2993.1,5.97534464]
[1768976093516,4.74538146,2993.7,2993.1,0.555]
[1768976093517,4.73538146,2993.7,2993.1,0.555]
[1768976094020,4.74538146,2993.5,2993.1,0.555]
[1768976096234,4.74538146,2993.5,2993.1,1.11]
[1768976098509,4.74538146,2993.5,2993.1,1.665]
[1768976099231,4.83001459,2993.4,2992.9,4.92454855]
[1768976099535,4.74538146,2993.3,2992.8,0.556]
[1768976099903,4.74538146,2993.3,2992.8,5.48054855]
[1768976100435,4.74538146,2993.3,2993.0,0.001]
[1768976100640,4.74538146,2993.3,2992.8,5.48054855]
[1768976100996,4.74538146,2993.3,2992.8,6.03554855]
[1768976101629,5.75122121,2993.3,2992.8,1.111]
[1768976102003,4.74538146,2993.0,2992.6,1.11]
[1768976102204,4.74538146,2992.7,2992.3,0.52652478]
[1768976103033,4.73538146,2992.7,2992.3,0.52652478]
[1768976103402,4.73538146,2992.7,2992.3,1.08152478]
[1768976106139,4.73538146,2992.7,2992.3,1.63652478]
[1768976106939,4.74538146,2992.4,2991.9,1.11]
[1768976107103,4.74538146,2992.4,2991.9,6.58554855]
[1768976107303,4.74538146,2992.4,2992.0,4.92454855]
[1768976107712,4.74538146,2992.4,2991.8,6.03054856]
[1768976108232,4.73538146,2992.4,2991.8,1.10600001]
[1768976108436,4.73538146,2992.4,2991.8,1.66100001]
[1768976109635,5.69192107,2992.4,2991.8,1.11000001]
[1768976109849,4.74538146,2992.1,2991.8,1.11000001]
[1768976110051,4.74538146,2992.1,2991.8,0.88807561]
[1768976110343,4.74538146,2992.1,2991.8,0.31775841]
[1768976110543,4.74538146,2992.1,2991.8,1e-08]
[1768976110745,4.74538146,2992.1,2991.8,0.55500001]
[1768976110945,4.74538146,2992.1,2991.5,6.03454855]
[1768976111243,4.74538146,2992.9,2991.6,4.95797547]
[1768976111543,5.29738146,2992.6,2991.6,4.95797547]
[1768976111747,0.002,2992.5,2991.6,4.95797547]
[1768976111945,4.74738146,2992.5,2991.6,4.95797547]
[1768976113230,4.74738146,2992.5,2991.6,5.51297547]
[1768976113442,4.74738146,2992.5,2991.8,4.92454855]
[1768976113643,4.74738146,2992.5,2991.8,5.47554855]
[1768976115848,4.74738146,2992.5,2991.8,6.03054855]
[1768976116008,5.07672827,2992.4,2991.8,0.555]
[1768976118261,5.07672827,2992.4,2991.8,1.11]
[1768976118554,6.12280256,2992.4,2991.8,1.11]
[1768976119953,6.12280256,2992.4,2991.8,0.83992854]
[1768976120159,6.12280256,2992.4,2991.6,1.55867848]
[1768976120358,6.12280256,2992.4,2991.6,6.58376075]
[1768976120857,6.12280256,2992.4,2991.6,1.55867848]
[1768976121045,6.12280256,2992.4,2991.6,7.13876075]
[1768976121255,6.12280256,2992.4,2991.7,5.02508227]
[1768976122864,6.12280256,2992.4,2991.7,6.02876075]
[1768976123164,6.12280256,2992.4,2991.7,5.02508227]
[1768976123662,6.12280256,2992.4,2991.7,5.58008227]
[1768976125977,5.07672827,2992.4,2991.7,5.58008227]
[1768976126182,5.07672827,2992.4,2991.7,6.13508227]
[1768976127269,5.07672827,2992.2,2991.7,6.13508227]
[1768976128072,5.07672827,2992.2,2991.7,1.11]
[1768976128637,5.07672827,2992.2,2991.7,1.665]
[1768976130252,5.07672827,2992.2,2991.7,2.71147608]
[1768976131051,5.07672827,2992.2,2991.7,3.26647608]
[1768976131586,1.04647607,2991.7,2991.6,1.11]
[1768976131880,1.04647607,2991.7,2991.6,0.01125162]
[1768976133562,1.04647607,2991.7,2991.6,0.56625162]
[1768976135259,0.94251079,2991.7,2991.6,5.59133389]
[1768976135465,0.94251079,2991.7,2991.6,6.31656728]
[1768976136183,0.94251079,2991.7,2991.6,6.87156728]
[1768976137158,5.07672827,2992.0,2991.6,6.14633389]
[1768976138790,5.07672827,2992.0,2991.6,6.70133389]
[1768976141085,5.07672827,2992.0,2991.6,7.25633389]
[1768976142791,0.002,2992.2,2991.3,0.001]
[1768976142792,0.26716786,2991.5,2991.3,0.001]
[1768976143476,0.26716786,2991.5,2991.3,0.556]
[1768976145193,0.26716786,2991.5,2991.3,0.555095]
[1768976145393,0.26716786,2991.5,2991.2,5.02508227]
[1768976145982,0.26716786,2991.5,2991.2,5.58008227]
[1768976148303,5.07672827,2991.7,2991.4,0.001]
[1768976148490,5.07672827,2991.7,2991.2,6.13508227]
[1768976148896,5.07672827,2991.7,2991.0,0.55494432]
[1768976148897,4.9989985,2991.5,2991.0,0.55494432]
[1768976149268,4.9989985,2991.5,2991.0,2e-08]
[1768976149598,4.9989985,2991.5,2990.8,6.57906084]
[1768976149926,4.83431656,2991.6,2990.8,0.56]
[1768976149927,4.9989985,2991.3,2990.8,0.56]
[1768976150069,5.49889835,2991.2,2990.8,0.56]
[1768976150269,4.9989985,2991.2,2990.8,0.56]
[1768976151003,4.9989985,2991.2,2990.8,1.115]
[1768976151779,4.83431656,2991.6,2990.8,6.03306084]
[1768976152103,0.50767283,2991.7,2991.0,4.91806084]
[1768976152987,0.0334025,2991.6,2991.0,4.91806084]
[1768976153307,0.0334025,2991.6,2991.0,5.47306084]
[1768976154535,4.9989985,2991.5,2991.0,5.47306084]
[1768976154911,5.032401,2991.5,2991.0,5.47306084]
[1768976156231,4.9989985,2991.5,2991.0,6.02806084]
[1768976157457,5.032401,2991.5,2991.0,6.02806084]
[1768976157610,5.032401,2991.5,2991.0,5.47806084]
[1768976157936,1.04759249,2991.4,2991.0,5.47806084]
[1768976158322,5.44352394,2991.6,2991.1,4.91806084]
[1768976158323,0.60920738,2991.6,2991.1,4.91806084]
[1768976158507,0.552,2991.8,2991.1,4.91806084]
[1768976159032,5.5509985,2991.8,2991.1,4.91806084]
[1768976159628,0.001,2991.3,2991.1,4.91806084]
[1768976159834,0.552,2991.8,2991.1,4.91806084]
[1768976160214,1.1104401,2991.8,2991.1,4.91806084]
[1768976160829,0.5854025,2992.0,2991.1,4.91806084]
[1768976161023,0.5854025,2992.0,2991.1,5.47306084]
[1768976161247,0.552,2992.0,2991.1,5.47306084]
[1768976161610,0.002,2992.2,2991.2,4.91806084]
[1768976161839,0.002,2992.2,2991.1,4.44923401]
[1768976161840,0.002,2992.2,2991.4,4.91806084]
[1768976162014,0.002,2992.2,2991.6,4.91806084]
[1768976163449,0.002,2992.2,2991.6,5.47306084]
[1768976165945,0.002,2992.2,2991.6,6.02806084]
[1768976166711,5.0009985,2992.2,2991.6,6.02806084]
[1768976168516,5.0009985,2992.2,2991.6,6.58306084]
[1768976169555,5.0009985,2992.2,2991.6,7.29646692]
[1768976170119,5.0009985,2992.2,2991.7,4.91806084]
[1768976170952,5.0009985,2992.2,2991.7,5.47306084]
[1768976171261,0.002,2992.0,2991.7,5.47306084]
[1768976171451,5.0009985,2992.0,2991.7,0.555]
[1768976171650,5.0009985,2992.0,2991.6,1.665]
[1768976171861,5.0009985,2992.0,2991.0,7.50308571]
[1768976171862,5.37560888,2992.0,2991.2,4.91806084]
[1768976172152,5.40901138,2992.0,2991.2,5.46906084]
[1768976172759,5.0009985,2992.0,2991.3,0.03343028]
[1768976172924,5.0009985,2992.0,2991.4,4.91806084]
[1768976173418,5.0009985,2992.0,2991.4,5.47306084]
[1768976174758,5.0009985,2992.0,2991.5,4.95148888]
[1768976174966,5.0009985,2992.0,2991.6,5.46906084]
[1768976176063,5.0009985,2992.0,2991.6,6.02406084]
[1768976178653,5.0009985,2992.0,2991.6,6.57906084]
[1768976179129,0.002,2992.0,2991.7,4.87050329]
[1768976181150,0.002,2992.0,2991.8,4.87050329]
[1768976183361,0.002,2992.0,2991.8,5.42550329]
[1768976183559,0.002,2992.2,2991.9,4.87050329]
[1768976183764,0.002,2992.2,2992.0,5.42150329]
[1768976183963,0.002,2992.2,2992.0,5.37871285]
[1768976185191,0.002,2992.2,2992.0,5.97208414]
[1768976185390,0.002,2992.4,2992.1,4.87050329]
[1768976185681,0.002,2992.7,2992.2,4.87050329]
[1768976186186,0.002,2993.4,2992.5,4.87050329]
[1768976186348,4.85916284,2993.4,2992.7,4.87050329]
[1768976187248,0.002,2993.4,2992.8,4.87050329]
[1768976187654,4.85916284,2993.4,2992.8,4.87050329]
[1768976188374,4.85916284,2993.4,2992.8,5.42550329]
[1768976188558,4.85916284,2993.4,2992.9,4.87050329]
[1768976188757,4.85916284,2993.4,2993.0,0.551]
[1768976189082,4.85916284,2993.4,2993.0,5.42150329]
[1768976189263,0.002,2993.4,2993.0,5.42150329]
[1768976190678,4.85916284,2993.4,2993.0,0.551]
[1768976190881,4.85916284,2993.4,2993.0,1.106]
[1768976193477,5.34527912,2993.4,2993.0,1.661]
[1768976194381,4.85716284,2993.2,2993.0,1.661]
[1768976194689,4.85716284,2993.2,2992.8,1.10194435]
[1768976195720,4.85916284,2993.2,2992.8,1.10194435]
[1768976195893,4.85916284,2993.2,2992.8,0.44453935]
[1768976198410,4.85916284,2993.2,2992.8,0.99953935]
[1768976200893,4.85916284,2993.2,2992.8,1.55453935]
[1768976201404,4.85916284,2993.2,2992.8,6.42504264]
[1768976203331,4.85916284,2993.2,2992.8,2.10953935]
[1768976206403,4.85916284,2993.2,2992.8,2.66453935]
[1768976206925,4.85916284,2993.2,2992.8,7.7619878]
[1768976208320,0.002,2993.0,2992.8,7.7619878]
[1768976208905,0.002,2993.0,2992.9,5.09744845]
[1768976211453,0.002,2993.0,2992.9,0.555]
[1768976211619,0.002,2993.0,2992.9,0.28742066]
[1768976211824,0.002,2993.0,2992.8,3.16953935]
[1768976212025,0.002,2993.0,2992.8,8.2669878]
[1768976214161,0.002,2993.0,2992.8,8.8219878]
[1768976215964,0.002,2993.0,2992.8,0.555]
[1768976216143,4.95481752,2993.0,2992.2,5.09744845]
[1768976216344,4.95481752,2993.0,2992.3,5.64844845]
[1768976216878,4.95481752,2993.0,2992.3,5.09744845]
[1768976217050,4.95481752,2993.0,2992.3,5.64844845]
[1768976219087,4.95481752,2993.0,2992.3,6.20344845]
[1768976219675,4.95481752,2993.0,2992.5,0.001]
[1768976221396,4.95481752,2993.0,2992.5,0.556]
[1768976222261,4.95481752,2993.0,2992.5,1.17684484]
[1768976222463,4.95481752,2993.0,2992.5,5.65344845]
[1768976224089,4.95481752,2993.0,2992.5,6.20844845]
[1768976225702,0.002,2993.0,2992.5,6.20844845]
[1768976226302,0.002,2993.0,2992.6,5.09744845]
[1768976227310,4.95481752,2993.0,2992.5,6.76344845]
[1768976228713,4.95481752,2993.0,2992.5,7.31844845]
[1768976230979,0.002,2992.8,2992.5,7.31844845]
[1768976231183,0.002,2992.8,2992.5,8.6607933]
[1768976231585,4.95481752,2992.8,2992.5,2.776]
[1768976233598,4.95481752,2992.8,2992.5,3.331]
[1768976234921,4.95481752,2992.8,2992.5,1e-08]
[1768976236212,4.95481752,2992.8,2992.5,0.55500001]
[1768976236596,4.95481752,2992.8,2992.5,0.27714256]
[1768976236794,4.95481752,2992.8,2992.5,1e-08]
[1768976237004,5.45049927,2992.8,2992.3,0.555]
[1768976237322,5.45049927,2992.8,2992.3,2e-08]
[1768976237527,5.45049927,2992.8,2992.4,4.80349642]
[1768976237528,0.002,2992.8,2992.4,4.80349642]
[1768976238426,0.002,2992.8,2992.4,4.77007843]
[1768976238725,5.0438381,2992.8,2992.4,5.32507843]
[1768976241026,5.0438381,2992.8,2992.4,5.88007843]
[1768976241728,5.0438381,2992.8,2992.4,1.11]
[1768976241927,5.60142191,2992.7,2992.4,1.11]
[1768976243024,5.60142191,2992.7,2992.4,0.33921531]
[1768976243212,5.60142191,2992.7,2992.4,1e-08]
[1768976243398,5.60142191,2992.7,2992.4,0.55500001]
[1768976243726,5.60142191,2992.7,2992.2,0.55498974]
[1768976243902,5.0418381,2992.7,2992.6,0.001]
[1768976244098,5.0418381,2992.7,2992.2,0.55498974]
[1768976244296,5.0418381,2992.7,2992.2,0.06115122]
[1768976244631,5.0418381,2992.7,2992.1,0.555]
[1768976245804,5.0418381,2992.7,2992.1,1.11]
[1768976246031,5.0418381,2992.5,2992.1,0.45558861]
[1768976246228,5.0418381,2992.5,2992.1,0.20585503]
[1768976246530,5.0418381,2992.5,2992.1,1e-08]
[1768976248199,5.0418381,2992.5,2992.1,0.55500001]
[1768976250644,5.0418381,2992.5,2992.1,1.11000001]
[1768976250937,5.0418381,2992.5,2991.9,4.77007843]
[1768976251437,5.0418381,2992.5,2991.8,5.32507843]
[1768976251611,6.09802191,2992.5,2991.8,0.555]
[1768976251802,6.09802191,2992.5,2991.6,1.10996289]
[1768976251803,5.0418381,2992.4,2991.6,1.10996289]
[1768976252002,5.0418381,2992.4,2991.6,1e-08]
[1768976252199,5.0418381,2992.3,2991.6,1e-08]
[1768976253142,5.0418381,2992.3,2991.6,0.55500001]
[1768976253306,5.0418381,2992.1,2991.6,0.49853705]
[1768976253505,5.0418381,2992.1,2991.6,1e-08]
[1768976255511,5.0418381,2992.1,2992.0,0.001]
[1768976255711,5.0418381,2992.1,2991.6,0.55500001]
[1768976255925,5.0418381,2992.1,2991.6,0.30894106]
[1768976256141,5.0418381,2991.9,2991.6,1.026e-05]
[1768976258654,5.0418381,2991.9,2991.6,0.55501026]
[1768976258947,5.0418381,2991.9,2991.6,0.3038232]
[1768976259115,5.0418381,2991.9,2991.6,1e-08]
[1768976261048,5.0418381,2991.9,2991.6,0.55500001]
[1768976261346,5.0418381,2991.9,2991.6,0.49705517]
[1768976261560,5.0418381,2991.9,2991.6,0.27413285]
[1768976261763,5.0418381,2991.9,2991.6,0.21840207]
[1768976262057,5.0418381,2991.9,2991.6,0.16189525]
[1768976262214,5.0418381,2991.9,2991.4,5.32507843]
[1768976262636,0.552,2992.0,2991.4,5.32507843]
[1768976262843,5.5938381,2992.3,2991.5,4.77007843]
[1768976263677,5.0418381,2992.1,2991.5,5.32507843]
[1768976266270,4.72407348,2992.2,2991.5,5.88007843]
[1768976266584,0.552,2992.3,2991.7,5.0642784]
[1768976266760,0.002,2992.6,2992.0,5.0642784]
[1768976267468,0.002,2992.6,2992.3,5.0642784]
[1768976267877,0.002,2992.6,2992.2,4.83480791]
[1768976267878,0.002,2993.0,2992.6,5.0642784]
[1768976268653,0.002,2993.0,2992.6,5.6192784]
[1768976271193,0.002,2993.0,2992.6,6.1742784]
[1768976272774,4.72607348,2993.0,2992.6,1.11]
[1768976272980,5.19888083,2993.0,2992.6,1.11]
[1768976273603,5.19888083,2993.0,2992.6,1.665]
[1768976274895,4.72607348,2993.0,2992.6,6.7292784]
[1768976276117,4.72607348,2993.0,2992.6,7.2842784]
[1768976277081,0.002,2993.0,2992.7,5.0642784]
[1768976278397,4.72407954,2993.4,2992.6,2.22]
[1768976278596,4.72407954,2993.4,2992.7,1.03964364]
[1768976278814,4.72407954,2993.4,2992.7,5.0642784]
[1768976280100,4.72407954,2993.4,2992.8,5.0652784]
[1768976280609,0.002,2993.0,2992.8,5.0652784]
[1768976281223,0.002,2993.0,2992.8,5.6202784]
[1768976283127,0.002,2993.0,2992.8,0.556]
[1768976283535,0.002,2993.0,2992.8,1.111]
[1768976283731,4.72607348,2993.0,2992.8,1.111]
[1768976286017,0.002,2993.0,2992.8,1.666]
[1768976286824,4.72407348,2993.2,2992.8,6.7302784]
[1768976287024,0.552,2993.3,2992.9,5.0642784]
[1768976287636,5.27607348,2993.3,2992.8,6.7302784]
[1768976288727,1.12526213,2992.8,2992.6,2.775]
[1768976289949,0.552,2993.3,2992.8,5.0642784]
[1768976290098,0.552,2993.3,2992.6,2.775]
[1768976290099,0.552,2993.3,2993.0,5.03419877]
[1768976291222,0.552,2993.3,2993.0,5.58919877]
[1768976293737,0.552,2993.3,2993.0,6.14419877]
[1768976295832,5.73966266,2993.3,2993.0,1.11]
[1768976296014,5.73966266,2993.3,2993.0,1.665]
[1768976298631,5.73966266,2993.3,2993.0,2.22]
[1768976299337,0.552,2993.3,2993.0,2.22]
[1768976301342,0.552,2993.3,2993.0,2.775]
[1768976303834,0.552,2993.3,2993.0,3.33]
[1768976304448,0.002,2993.1,2993.0,3.33]
[1768976305745,0.554,2993.3,2993.1,5.11746535]
[1768976306149,0.554,2993.3,2993.0,8.44746535]
[1768976306324,0.554,2993.3,2993.0,9.00246535]
[1768976306514,0.554,2993.3,2993.1,0.03341017]
[1768976308762,0.554,2993.3,2993.1,0.555]
[1768976309723,0.002,2993.5,2993.3,5.11746535]
[1768976310921,0.002,2993.5,2993.1,1.51408766]
[1768976311147,0.002,2993.5,2993.2,5.11746535]
[1768976314052,0.002,2993.5,2993.2,5.67246535]
[1768976316230,0.002,2993.3,2993.2,5.67246535]
[1768976316438,0.002,2993.3,2993.2,7.39012065]
[1768976317827,0.002,2993.6,2993.4,5.11746535]
[1768976318063,6.06e-06,2993.8,2993.4,5.11746535]
[1768976318428,6.06e-06,2993.8,2993.4,5.85981821]
[1768976318945,6.06e-06,2993.8,2993.5,5.11746535]
[1768976319259,6.06e-06,2993.8,2993.4,1.29735286]
[1768976319458,6.06e-06,2993.8,2993.4,0.555]
[1768976319762,0.554,2993.9,2993.4,0.555]
[1768976319763,5.18766266,2993.9,2993.4,0.555]
[1768976321756,5.18766266,2993.9,2993.4,1.11]
[1768976324235,5.18766266,2993.9,2993.4,1.665]
[1768976326566,5.18766266,2993.9,2993.4,2.22]
[1768976327571,5.70682893,2993.9,2993.4,2.13255448]
[1768976327744,5.18307006,2993.7,2993.2,1.11]
[1768976327931,5.18307006,2993.7,2993.0,2.75892968]
[1768976328360,5.18307006,2993.7,2993.4,0.001]
[1768976328566,5.18307006,2993.5,2993.4,0.001]
[1768976329062,5.18307006,2993.5,2993.0,2.75892968]
[1768976329063,5.18307006,2993.5,2993.0,1e-08]
[1768976329261,5.18307006,2993.3,2993.0,1e-08]
[1768976330549,5.18307006,2993.3,2992.8,0.001]
[1768976331348,5.18307006,2993.3,2992.8,0.556]
[1768976331550,5.18307006,2993.1,2992.8,0.556]
[1768976332059,5.18307006,2993.1,2992.8,0.49727719]
[1768976332263,5.18307006,2993.1,2992.8,0.28129037]
[1768976332477,5.18307006,2993.1,2992.8,0.1612968]
[1768976334284,5.18307006,2993.1,2992.8,0.68621309]
[1768976334442,5.75872777,2993.1,2992.8,0.68621309]
[1768976334953,5.75872777,2993.1,2992.8,0.65612939]
[1768976335279,5.18307006,2992.9,2992.1,4.88968242]
[1768976336786,5.18307006,2992.9,2992.1,5.44468242]
[1768976336964,5.81414284,2992.9,2992.1,5.44468242]
[1768976339077,5.81414284,2992.9,2992.1,0.555]
[1768976339292,5.81414284,2992.9,2992.1,1.11]
[1768976339794,5.81414284,2992.9,2992.3,0.001]
[1768976341780,5.81414284,2992.9,2992.3,0.556]
[1768976342097,5.18307006,2992.7,2992.3,0.556]
[1768976344311,5.18307006,2992.7,2992.3,1.111]
[1768976345575,5.18307006,2992.7,2992.3,6.00068242]
[1768976346902,5.18307006,2992.7,2992.3,6.55568242]
[1768976348589,0.552,2993.0,2992.4,4.88968242]
[1768976348822,5.18307006,2992.9,2992.4,4.88968242]
[1768976349031,5.18307006,2992.9,2992.4,4.88808243]
[1768976349324,5.18307006,2992.9,2992.4,5.44308243]
[1768976351826,5.18307006,2992.9,2992.5,0.001]
[1768976352023,0.002,2992.7,2992.4,1.11]
[1768976352494,5.18507006,2992.7,2992.4,1.11]
[1768976354246,5.18507006,2992.7,2992.4,1.665]
[1768976355438,5.18507006,2992.7,2992.4,1.41884228]
[1768976355603,5.18507006,2992.7,2992.4,1.15475131]
[1768976355806,5.18507006,2992.7,2992.4,1.10673477]
[1768976356144,5.18507006,2992.7,2992.4,0.79458022]
[1768976356333,5.18507006,2992.7,2992.4,0.76449694]
[1768976356521,5.18507006,2992.7,2992.4,1.31949694]
[1768976358531,5.18507006,2992.7,2992.4,1.19336513]
[1768976358926,5.18507006,2992.7,2992.4,1.74836513]
[1768976359104,0.002,2992.7,2992.4,1.74836513]
[1768976359520,0.002,2992.7,2992.4,6.94131003]
[1768976359918,4.97668476,2992.7,2992.4,1.74836513]
[1768976360319,4.97668476,2992.7,2992.4,1.65230794]
[1768976360520,4.97668476,2992.7,2992.4,1.38814828]
[1768976360756,4.97668476,2992.7,2992.4,1.19603008]
[1768976360936,4.97668476,2992.7,2992.4,0.90784943]
[1768976361464,4.97668476,2992.7,2992.4,1.46284943]
[1768976362150,4.97668476,2992.7,2992.4,1.10261795]
[1768976362352,4.97668476,2992.7,2992.4,0.91049202]
[1768976362533,4.97668476,2992.7,2992.4,0.62229993]
[1768976363323,5.47789349,2992.7,2992.4,0.62229993]
[1768976363942,5.47789349,2992.7,2992.4,1.17729993]
[1768976364249,5.47789349,2992.7,2992.4,6.37024483]
[1768976364250,0.002,2992.5,2992.4,6.37024483]
[1768976364450,0.002,2992.5,2992.4,1.17729993]
[1768976364835,0.002,2992.5,2992.3,1e-08]
[1768976366258,0.002,2992.5,2992.3,5.19294491]
[1768976366458,0.002,2992.5,2992.3,5.74794491]
[1768976369156,0.002,2992.5,2992.3,1.11]
[1768976369658,0.002,2992.5,2992.3,0.86376284]
[1768976369843,0.002,2992.5,2992.3,0.57555404]
[1768976370049,0.002,2992.5,2992.3,0.33537701]
[1768976370360,0.002,2992.5,2992.3,0.26332333]
[1768976370562,0.002,2992.5,2992.3,0.23324008]
[1768976371358,0.002,2992.7,2992.3,5.95110174]
[1768976371572,0.002,2992.7,2992.3,1.46426701]
[1768976371864,0.002,2992.7,2992.3,0.75815684]
[1768976371865,4.97668476,2992.7,2992.3,0.75815684]
[1768976372158,4.97668476,2992.7,2992.3,5.95110174]
[1768976373838,4.97668476,2992.7,2992.3,6.50610174]
[1768976375066,0.002,2992.7,2992.3,6.50610174]
[1768976376450,0.002,2992.7,2992.3,7.06110174]